Cogmind - Beta 15 @@@ ROGUE MODE // 2025.05.11 @ 13:42:44 Player: Minty Result: Destroyed by FA-TZI(z) with Zionite Laser-S Performance ------------- Evolutions (1) 500 Regions Visited (6) 1200 Robots Destroyed (25) 125 Value Destroyed (465) 465 Prototype IDs (4) 80 Alien Tech Used (0) 0 Bonus (600) 600 TOTAL SCORE: 2970 Bonus ------- Met Imprinter 300 Was Imprinted 300 Cogmind --------- Core Integrity 0/400 Matter 234/300 Energy 99/100 System Corruption 0% Temperature Critical (521) Movement Core (50) Location -7/Deep Caves Parts ------- > --- POWER (1) -------- (None) > --- PROPULSION (2) --- (None) > --- UTILITY (2) ------ (None) > --- WEAPON (4) ------- (None) > --- INVENTORY (5) ---- Large Battery (200) Large Battery (200) Sensor Drone Bay (20/20) Heavy Riot Gun Heavy Riot Gun Peak State ------------ > --- POWER ------------ Heavy Ion Engine > --- PROPULSION ------- Light Treads Medium Treads > --- UTILITY ---------- Small Storage Unit > --- WEAPON ----------- Heavy Riot Gun Heavy Beamcaster Heavy Battle Rifle Chainsword > --- INVENTORY -------- Light Treads Wheel Large Battery Large Battery Improved Targeting Computer Propulsion Shielding Sensor Drone Bay [Rating: 28] Favorites ----------- Power Ion Engine Engine Ion Engine Propulsion Aluminum Leg Treads Light Treads Leg Aluminum Leg Wheel Wheel Utility Small Storage Unit Device Heat Sink Storage Small Storage Unit Processor Improved Targeting Computer Protection Propulsion Shielding Weapon Battle Rifle Energy Gun Medium Laser Energy Cannon Beam Cannon Ballistic Gun Battle Rifle Ballistic Cannon Battle Cannon Slashing Weapon Chainsword Build | -11 -10 -10 -9 -9 -7 -7 ------- Run | Yrd Mat Min Mat Min Zio Dee Slots Evolved 2 | . . . 2 . . . Power . | . . . . . . . Propulsion . | . . . . . . . Utility . | . . . . . . . Weapon 2 | . . . 2 . . . Parts Attached 24 | . 6 3 4 2 7 2 Power 4 | . 2 . 2 . . . Engine 4 | . 2 . 2 . . . Core . | . . . . . . . Reactor . | . . . . . . . Propulsion 5 | . . 2 1 1 1 . Treads 3 | . . . 1 1 1 . Leg . | . . . . . . . Wheel 2 | . . 2 . . . . Hover . | . . . . . . . Flight . | . . . . . . . Utility 4 | . 1 1 . . 1 1 Device 2 | . 1 1 . . . . Storage . | . . . . . . . Processor 1 | . . . . . . 1 Hackware . | . . . . . . . Protection 1 | . . . . . 1 . Artifact . | . . . . . . . Weapon 11 | . 3 . 1 1 5 1 Energy Gun 5 | . 2 . 1 . 2 . Energy Cannon 1 | . 1 . . . . . Ballistic Gun 3 | . . . . . 3 . Ballistic Cannon 1 | . . . . . . 1 Launcher . | . . . . . . . Special Weapon . | . . . . . . . Impact Weapon . | . . . . . . . Slashing Weapon 1 | . . . . 1 . . Piercing Weapon . | . . . . . . . Special Melee Weapon . | . . . . . . . Unidentified Prototypes 2 | . . 1 1 . . . Parts Lost 15 | . 2 3 3 . . 7 Power 2 | . 1 . 1 . . . Propulsion 4 | . . 1 1 . . 2 Utility 1 | . . . . . . 1 Weapon 8 | . 1 2 1 . . 4 Highest Loss Streak 7 | . 1 2 3 . . 7 To Critical Strikes 1 | . 1 . . . . . Average Backups 7 | . 7 7 7 6 7 7 Power . | . . 1 1 . . . Propulsion 2 | . 4 3 2 1 . . Utility 3 | . 1 3 4 4 4 3 Weapon 1 | . . . . . 2 3 Tool/Special . | . . . . . . . Unused Backups 10 | . 6 1 . . . 3 Power 1 | . 1 . . . . . Propulsion 3 | . 2 1 . . . . Utility 3 | . 1 . . . . 2 Weapon 3 | . 2 . . . . 1 Tool/Special . | . . . . . . . Average Slot Usage (%) 80 | . 87 83 56 39 83 96 Engine 11 | . 14 14 10 1 11 11 Treads 10 | . . . 1 12 22 21 Leg 11 | . 28 16 . . . . Wheel 2 | . . 8 18 9 . . Device 3 | . 2 14 9 4 . . Storage 12 | . 14 14 11 11 11 11 Protection 2 | . . . . . 6 9 Energy Gun 8 | . 20 6 6 . . . Energy Cannon 3 | . 7 9 . . . . Ballistic Gun 9 | . . . . . 20 30 Slashing Weapon 4 | . . . . 1 10 8 Peak Build Rating 28 | . 7 12 9 14 28 27 Average Rating 12 | . 6 6 6 8 20 23 On Entrance 9 | 6 6 7 6 4 14 24 Naked Turns 1 | . . . . . . 1 Heaviest Build 29 | 11 16 16 14 19 29 25 Greatest Support 48 | 20 20 20 20 48 48 48 Greatest Overweight (x) 1 | . . 1 1 1 . . Average Overweight (x) . | . . . . . . . Largest Inventory Capacity 8 | . 8 8 8 8 8 8 Average Capacity 7 | . 8 8 8 8 8 7 Most Carried 8 | . 8 8 8 8 8 8 Average Carried 7 | . 7 7 7 6 7 7 Final Capacity 8 | 8 8 8 8 8 8 5 Final Carried 8 | 6 8 8 7 7 8 5 Class Distribution -------------------- 70% | Mutant 28% | Tank Dominant Class ---------------- Mutant | -10/Materials Mutant | -10/Mines Mutant | -9/Materials Mutant | -9/Mines Tank | -7/Zion Tank | -7/Deep Caves Resources | -11 -10 -10 -9 -9 -7 -7 ----------- Run | Yrd Mat Min Mat Min Zio Dee Matter Collected 478 | 200 60 40 17 . 11 150 Remotely . | . . . . . . . Salvage Created 698 | . 523 98 77 . . . Parts 49 | . 40 4 5 . . . Haulers Intercepted 2 | . 2 . . . . . Recyclers Shooed 1 | . . . 1 . . . Parts Field Recycled . | . . . . . . . Retrieved Matter . | . . . . . . . Parts Self-Destructed . | . . . . . . . Prevented . | . . . . . . . Kills | -11 -10 -10 -9 -9 -7 -7 ------- Run | Yrd Mat Min Mat Min Zio Dee Combat Hostiles Destroyed 20 | . 15 4 1 . . . Guns 11 | . 10 . 1 . . . Cannons 8 | . 4 4 . . . . Classes Destroyed 6 | . 4 . 2 . . . Hauler 2 | . 2 . . . . . Operator 1 | . . . 1 . . . Watcher 2 | . 2 . . . . . Swarmer 12 | . 9 3 . . . . Grunt 7 | . 6 1 . . . . Sentry 1 | . . . 1 . . . Best Kill Streak 6 | . 6 4 1 . . . Combat Bots Only 6 | . 6 4 1 . . . Max Kills in Single Turn 2 | . 2 1 1 . . . Gunslinging 1 | . 1 . . . . . Exploded . | . . . . . . . Melee . | . . . . . . . Uniques/NPCs Destroyed . | . . . . . . . Combat | -11 -10 -10 -9 -9 -7 -7 -------- Run | Yrd Mat Min Mat Min Zio Dee Hostile Shots Fired 235 | . 89 39 49 . . 58 Missed 80 | . 28 12 25 . . 15 Hits 155 | . 61 27 24 . . 43 Projectile 155 | . 61 27 24 . . 43 Critical Strikes 2 | . 2 . . . . . Damage Taken 2630 | . 540 317 335 32 . 1406 Core 596 | . 121 47 78 13 . 337 Absorbed by Shields . | . . . . . . . Redirected to Shielding 50 | . . . . . . 50 Core Remaining (%) 66 | 100 . 32 . . . . Volleys Fired 87 | . 41 20 15 . . 11 Largest 4 | . 2 2 1 . . 4 Hottest 139 | . 110 110 45 . . 139 Shots Fired 147 | . 75 25 15 . . 32 Gun 104 | . 57 5 15 . . 27 Cannon 43 | . 18 20 . . . 5 Launcher . | . . . . . . . Special . | . . . . . . . Kinetic 28 | . . . . . . 28 Thermal 104 | . 75 25 . . . 4 Explosive . | . . . . . . . Electromagnetic 15 | . . . 15 . . . Robot Hit Streak 10 | . 10 6 8 . . 3 Robot Miss Streak 8 | . 6 2 1 . . 8 Penetration Max . | . . . . . . . Secondary Targets 4 | . 4 . . . . . Max Gunslinging Chain 1 | . 1 . . . . . Shots Hit Robots 80 | . 43 17 10 . . 10 Core Hits 34 | . 22 4 3 . . 5 Critical Kills . | . . . . . . . Critical Parts Destroyed . | . . . . . . . Critical Strikes 4 | . 3 . 1 . . . Burn 3 | . 3 . . . . . Corrupt 1 | . . . 1 . . . Melee Attacks 1 | . . . . . 1 . Impact . | . . . . . . . Slashing 1 | . . . . . 1 . Piercing . | . . . . . . . Sneak Attacks . | . . . . . . . Combat Hostiles . | . . . . . . . Follow-up Attacks . | . . . . . . . Damage Inflicted 1261 | . 587 299 157 . . 218 Guns 797 | . 429 52 146 . . 170 Cannons 453 | . 158 247 . . . 48 Explosions . | . . . . . . . Melee . | . . . . . . . Ramming 11 | . . . 11 . . . Kinetic 195 | . . . . . . 195 Thermal 909 | . 587 299 . . . 23 Explosive . | . . . . . . . Electromagnetic 146 | . . . 146 . . . Impact . | . . . . . . . Slashing . | . . . . . . . Piercing . | . . . . . . . Highest Corruption . | . . . . . . . Average Corruption . | . . . . . . . Corruption Purged . | . . . . . . . Corruption Blocked . | . . . . . . . Overload Shots . | . . . . . . . Overflow Damage 1 | . 1 . . . . . Projectiles 1 | . 1 . . . . . Explosions . | . . . . . . . Melee . | . . . . . . . Knockbacks . | . . . . . . . Impact . | . . . . . . . Kinetic . | . . . . . . . Secondary . | . . . . . . . Self-Inflicted Damage 5 | . . . 5 . . . Shots . | . . . . . . . Rammed 3 | . . . 3 . . . Targets Rammed 3 | . . . 3 . . . Kicked . | . . . . . . . Crushed . | . . . . . . . Highest Temperature 513 | . 330 54 . . . 513 Average Temperature 97 | . 89 19 . . . 220 Received Heat Transfer 711 | . 102 114 108 . . 387 Effects 3 | . . . . . . 3 Damage (major) 2 | . . . . . . 2 Damage (core) 1 | . . . . . . 1 Siege Activations . | . . . . . . . Martial Activations . | . . . . . . . Shielding Activations . | . . . . . . . Robots Disrupted . | . . . . . . . Combat Hostiles . | . . . . . . . Robots Corrupted . | . . . . . . . Combat Hostiles . | . . . . . . . Parts Fried 3 | . . . 3 . . . Impact Corruptions . | . . . . . . . Robots Melted 1 | . 1 . . . . . Combat Hostiles 1 | . 1 . . . . . Parts Melted 5 | . 5 . . . . . Heat Transferred 2453 | . 1778 666 . . . 9 Parts Sabotaged . | . . . . . . . Parts Stolen . | . . . . . . . Parts Stripped . | . . . . . . . Power Chain Reactions . | . . . . . . . Alert | -11 -10 -10 -9 -9 -7 -7 ------- Run | Yrd Mat Min Mat Min Zio Dee Maximum Alert Level . | . . . . . . . Low Security (%) 100 | . 100 100 100 100 . . Level 1 . | . . . . . . . Level 2 . | . . . . . . . Level 3 . | . . . . . . . Level 4 . | . . . . . . . Level 5 . | . . . . . . . High Security . | . . . . . . . Max Security . | . . . . . . . Peak Influence 120 | . 120 50 40 5 . . Initial 24 | . . 24 . 5 . . Average 39 | . 59 19 5 . . . Influence Increases 585 | . 415 90 80 . . . Destroy 0b10 Robot/C 400 | . 300 80 20 . . . Destroy 0b10 Robot/NC 25 | . 20 . 5 . . . Destroy Leader 78 | . 58 10 10 . . . Successful Hack 22 | . 22 . . . . . Disable Machine 15 | . 15 . . . . . Lose Combat Pursuer 45 | . . . 45 . . . Influence Decreases 585 | . 352 153 65 15 . . Entered New Map 49 | . . 39 . 10 . . Time Decay 456 | . 332 84 35 5 . . Lost Part 80 | . 20 30 30 . . . Squads Dispatched 3 | . 3 . . . . . Investigation 2 | . 2 . . . . . Extermination . | . . . . . . . Reinforcement 1 | . 1 . . . . . Assault . | . . . . . . . Garrison . | . . . . . . . Intercept . | . . . . . . . Searches Triggered . | . . . . . . . Construction Impeded . | . . . . . . . Haulers Reinforced . | . . . . . . . Active Scanning Responses . | . . . . . . . Cargo Convoy Interrupts . | . . . . . . . Stealth | -11 -10 -10 -9 -9 -7 -7 --------- Run | Yrd Mat Min Mat Min Zio Dee Distress Signals 4 | . 2 . 2 . . . Communications Jammed . | . . . . . . . Distress Signals . | . . . . . . . Times Spotted 43 | . 23 5 12 . . 3 Peak Tracking Total 8 | . 8 3 7 . . 3 Tactical Retreats 2 | . . . 2 . . . Traps | -11 -10 -10 -9 -9 -7 -7 ------- Run | Yrd Mat Min Mat Min Zio Dee Traps Triggered . | . . . . . . . Indirectly . | . . . . . . . Trap Hack Attempts . | . . . . . . . Triggered . | . . . . . . . Disarmed . | . . . . . . . Reprogrammed . | . . . . . . . Reused . | . . . . . . . Traps Extracted . | . . . . . . . Installed . | . . . . . . . Triggered . | . . . . . . . Machines | -11 -10 -10 -9 -9 -7 -7 ---------- Run | Yrd Mat Min Mat Min Zio Dee Machines Disabled 3 | . 1 . . . . 2 Max in Single Turn 1 | . 1 . . . . . Machines Repaired . | . . . . . . . Machines Dismantled . | . . . . . . . Machines Sabotaged . | . . . . . . . Overloaded Fab Kills . | . . . . . . . Hacking | -11 -10 -10 -9 -9 -7 -7 --------- Run | Yrd Mat Min Mat Min Zio Dee Machines Accessed 8 | . 3 1 3 1 . . Terminals 6 | . 3 . 3 . . . Fabricators . | . . . . . . . Repair Stations . | . . . . . . . Recycling Units . | . . . . . . . Scanalyzers . | . . . . . . . Garrison Access . | . . . . . . . Total Hacks 22 | . 9 1 11 1 . . Successful 7 | . 3 1 2 1 . . Failed 15 | . 6 . 9 . . . Catastrophic 5 | . 2 . 3 . . . Database Lockouts . | . . . . . . . Manual 17 | . 4 . 8 . 5 . Terminals 20 | . 9 . 11 . . . Fabricators . | . . . . . . . Repair Stations . | . . . . . . . Recycling Units . | . . . . . . . Scanalyzers . | . . . . . . . Garrison Access . | . . . . . . . Terminal Hacks 5 | . 2 1 1 1 . . Robot Analysis 1 | . 1 . . . . . Prototype ID Bank 1 | . . . 1 . . . Open Door 2 | . . 1 . 1 . . Branch Access Points 1 | . 1 . . . . . Fabricator Hacks . | . . . . . . . Repair Station Hacks . | . . . . . . . Recycling Unit Hacks . | . . . . . . . Scanalyzer . | . . . . . . . Garrison Access Hacks . | . . . . . . . Unauthorized Hacks 2 | . 1 . 1 . . . Terminals 2 | . 1 . 1 . . . Botnet 2 | . 1 . 1 . . . Fabricators . | . . . . . . . Repair Stations . | . . . . . . . Recycling Units . | . . . . . . . Scanalyzers . | . . . . . . . Garrison Access . | . . . . . . . Data Cores Recovered 1 | . . . 1 . . . Used . | . . . . . . . Hacking Detections 6 | . 3 . 3 . . . Full Trace Events 3 | . 2 . 1 . . . Feedback Events . | . . . . . . . Feedback Blocked . | . . . . . . . Robot Schematics Acquired 4 | . . . . . 4 . Robots Built . | . . . . . . . Authchips . | . . . . . . . Time . | . . . . . . . Total Robot Build Rating . | . . . . . . . Part Schematics Acquired 15 | . . . . . 15 . Parts Built . | . . . . . . . Authchips . | . . . . . . . Time . | . . . . . . . Total Part Build Rating . | . . . . . . . Parts Repaired . | . . . . . . . Time . | . . . . . . . Parts Recycled . | . . . . . . . Recycled Matter . | . . . . . . . Retrieved Matter . | . . . . . . . Retrieved Components . | . . . . . . . Parts Scanalyzed . | . . . . . . . Part Schematics Acquired . | . . . . . . . Parts Damaged . | . . . . . . . Bothacking | -11 -10 -10 -9 -9 -7 -7 ------------ Run | Yrd Mat Min Mat Min Zio Dee Used RIF Installer . | . . . . . . . Robots Hacked . | . . . . . . . Non-combat . | . . . . . . . Combat . | . . . . . . . Robot Hacks Applied . | . . . . . . . Relay Couplers Released . | . . . . . . . Fabnet Peak Effective % . | . . . . . . . Robots Rewired . | . . . . . . . Allies Hacked . | . . . . . . . Hacks Repelled . | . . . . . . . Allies | -11 -10 -10 -9 -9 -7 -7 -------- Run | Yrd Mat Min Mat Min Zio Dee Total Allies 10 | . . . . 3 7 . Largest Group 10 | . . . . 3 10 6 Highest-Rated Group 267 | . . . . 40 267 110 Highest-Rated Ally 41 | . . . . 16 41 31 Total Orders 1 | . . . . 1 . . RETURN 1 | . . . . 1 . . Ally Attacks 15 | . . . . . . 15 Total Damage 2730 | . . . . . . 2730 Kills 6 | . . . . . . 6 Allies Corrupted . | . . . . . . . Allies Melted . | . . . . . . . Intel | -11 -10 -10 -9 -9 -7 -7 ------- Run | Yrd Mat Min Mat Min Zio Dee Active Infowar (turns) . | . . . . . . . Robot Analysis Total 1 | . 1 . . . . . Derelict Logs Recovered . | . . . . . . . Drone Launches 1 | . . . . 1 . . Drone Recoveries 1 | . . . . 1 . . Exploration | -11 -10 -10 -9 -9 -7 -7 ------------- Run | Yrd Mat Min Mat Min Zio Dee Turns Passed 2364 | . 832 188 166 182 841 155 Spaces Moved 1595 | 1 584 116 151 182 490 71 Core 2 | . . . . . . 2 Treads 581 | . . . . 22 490 69 Legs 652 | 1 584 67 . . . . Wheels 360 | . . 49 151 160 . . Hover . | . . . . . . . Flight . | . . . . . . . Fastest Speed 50 | 120 120 80 80 80 160 50 Average Speed 126 | 120 120 110 81 95 160 156 Slowest Speed 190 | 120 120 190 95 160 160 160 Overloaded Moves . | . . . . . . . Propulsion Burnouts . | . . . . . . . Robots Hopped . | . . . . . . . Potential Cave-ins . | . . . . . . . Cave-ins Triggered . | . . . . . . . Exploration Rate (%) 37 | 2 79 35 27 44 56 22 Regions Visited 6 Branch Regions 4 Pre-discovered Areas . | . . . . . . . Known Exits Taken 1 | . 1 . . . . . Unknown Exits Taken 5 | 1 . 1 1 1 1 . Scrap Searched . | . . . . . . . Spaces Dug . | . . . . . . . Terrain Destroyed . | . . . . . . . Melee . | . . . . . . . Projectile . | . . . . . . . AOE . | . . . . . . . Terrain Rammed . | . . . . . . . Walls Destroyed . | . . . . . . . Machines Disabled . | . . . . . . . Actions | -11 -10 -10 -9 -9 -7 -7 --------- Run | Yrd Mat Min Mat Min Zio Dee Total 1794 | . 639 149 179 191 544 92 Wait 62 | . 3 9 . 4 40 6 Move 1589 | . 583 115 150 181 489 71 Hop . | . . . . . . . Pick Up 10 | . 4 1 2 . 3 . Fast Attach 8 | . 1 . 1 2 4 . Attach 10 | . 2 1 1 2 1 3 Detach 3 | . . . . 2 1 . Swap 13 | . 3 3 3 . 3 1 Drop 8 | . 2 . 4 . 2 . Fire 87 | . 41 20 15 . . 11 Melee 1 | . . . . . 1 . Ram 3 | . . . 3 . . . Kick . | . . . . . . . Crush . | . . . . . . . Escape Stasis . | . . . . . . . Rewire . | . . . . . . . Trap . | . . . . . . . Miscellaneous . | . . . . . . . Route ------- -11/Scrapyard -10/Materials (discovered 3 exits: *Mat x2 / *Min) -10/Mines -9/Materials -9/Mines (discovered 2 exits: [*Mat] / *Zio) -7/Zion -7/Deep Caves History --------- Turn | Location | Event 1 | -11/Scrapyard | Discovered new exit (range 0) 1 | -11/Scrapyard | Entered Materials 101 | -10/Materials | Discovered new exit (range 16) 305 | -10/Materials | Build established: Mutant 350 | -10/Materials | Discovered new exit (range 16) 501 | -10/Materials | Identified exit to Mines 833 | -10/Materials | Entered Mines 899 | -10/Mines | Discovered new exit (range 11) 902 | -10/Mines | Core integrity fell below 50% 981 | -10/Mines | Found the Drone Emporium 985 | -10/Mines | Found Prototype Device 985 | -10/Mines | Identified Sensor Drone Bay 1021 | -10/Mines | Entered Materials 1021 | -9/Materials | Evolved 2 slots: Weapon x2 1182 | -9/Materials | Discovered new exit (range 7) 1187 | -9/Materials | Entered Mines 1203 | -9/Mines | Lost 3 parts (1p1n1w) 1226 | -9/Mines | Assembled infested the area 1289 | -9/Mines | Assisted by bots powering up and referring to "LRC-V3" 1314 | -9/Mines | A Derelict revealed a hidden shortcut to a safe place 1323 | -9/Mines | Met a Derelict who couldn't figure out how to use a Trap Extractor 1368 | -9/Mines | Discovered new exit (range 10) 1369 | -9/Mines | Entered Zion 1369 | -7/Zion | Accompanied by 3 allies 1585 | -7/Zion | Gained Derelict followers 1803 | -7/Zion | Met Imprinter 1832 | -7/Zion | Imprinted 1834 | -7/Zion | Declared Zion's savior 1955 | -7/Zion | Build established: Tank 2104 | -7/Zion | Acquired unknown access codes intercepted by a Zionite 2138 | -7/Zion | Opened final containment barrier to the Deep Caves 2165 | -7/Zion | Discovered new exit (range 3) 2165 | -7/Zion | Saw the warning signs outside the Deep Caves entrance 2210 | -7/Zion | Entered Deep Caves 2210 | -7/Deep Caves | Accompanied by 10 allies 2302 | -7/Deep Caves | Z-Facility disabled 2327 | -7/Deep Caves | Attacked by Z-Imprinter 2358 | -7/Deep Caves | Core integrity fell below 50% 2364 | -7/Deep Caves | Core integrity fell below 20% 2364 | -7/Deep Caves | Released all parts (5) 2365 | -7/Deep Caves | Destroyed by FA-TZI(z) with Zionite Laser-S Last Messages --------------- 02331_ BX-Y0C(s) destroyed. 02334_ Mercenary 2a destroyed. 02335_ Acquired 50 matter. 02336_ Trooper 2a destroyed. 02336_ Acquired 100 matter. 02344_ Propulsion Shielding destroyed. 02347_ Battle Rifle destroyed. 02348_ Battle Cannon destroyed. 02350_ Lgt. Treads destroyed. 02354_ Battle Rifle destroyed. 02357_ Hvy. Battle Rifle destroyed. 02361_ Overheating: Imp. Targeting Computer damaged (-9). 02361_ Overheating: Sml. Storage Unit damaged (-2). 02361_ Med. Treads destroyed. 02364_ Overheating: Core damaged (-52). 02364_ Released Sml. Storage Unit. 02364_ Released Hvy. Ion Engine. 02364_ Released Imp. Targeting Computer. 02364_ Released Hvy. Beamcaster. 02364_ Released Chainsword. Map ----- +----------------------------------------------------+ | ?????????????????????????????????????????????????? | | ??????????????????????????# ???????######????????? | | ????????????????????????? # ????### ##???????? | | ???????????????????????? ##### #???????? | | ??????????????????????? #???????? | | ?????????????????????? ????????? | | ????????????????????? #????????? | | ???????????????????? #????????? | | ??????????????????? ##???????? | | ??????????????????? ######### | | ?????????????????? | | ???????????????? | | ?????????????? | | ????????????? ####### | | ???????????? ###????## | | ??????????? ##?????## | | ??????????? z % #??????# | | ?????????? z ##?????### | | ?????????? #???????? | | ????????? I #???????? | | ????????? = #???????? | | ????????? [ *%= ##???????? | | ???????? *=[ ![ #????????? | | ???????? /*!= #???????? | | ??????? ![* #???????? | | ??????? @%* ##???????? | | ??????? ##????????? | | ??????? #?????????? | | ??????? #????????? | | ???????? #???????? | | ???????? #???????? | | ????????? ##???????? | | ????????? #????????? | | ????????? ?????????? | | ?????????? ??????????? | | ?????????? ???????????? | | ??????????? ???????????? | | ??????????? ????????????? | | ????????????? ???????????????? | | ??????????????? ?????????????????? | | ?????????????????? ????????????????????? | | ???????????????????? ##### ??????????????????????? | | ?????????????????????????????????????????????????? | | ?????????????????????????????????????????????????? | | ?????????????????????????????????????????????????? | | ?????????????????????????????????????????????????? | | ?????????????????????????????????????????????????? | | | | | | | +----------------------------------------------------+ Best States ------------- Heat Dissipation 38 Energy Generation 14 Energy Capacity 280 Matter Stores 300 Matter Capacity 300 Sight Range 16 Terrain Scan Density 10 Propulsion Shielding 33 Evasion (%) 55 Targeting Accuracy 6 Recoil Reduction 2 Item Schematics ----------------- Angular Momentum Engine | -7/Zion | Archive Core Analyzer | -7/Zion | Archive Neutrino Core | -7/Zion | Archive Lrn. Tractor Beam | -7/Zion | Archive Greatsword | -7/Zion | Archive Hvy. Flak Cannon | -7/Zion | Archive Kinecellerator | -7/Zion | Archive Fission Core | -7/Zion | Archive Remote Datajack | -7/Zion | Archive Coil Gun | -7/Zion | Archive Component Analysis Suite | -7/Zion | Archive Imp. Medium Treads | -7/Zion | Archive Arc Projector | -7/Zion | Archive Gauss Rifle | -7/Zion | Archive Enh. Optical Array | -7/Zion | Archive Robot Schematics ------------------ M-28 Smith | -7/Zion | Archive L-41 Fighter | -7/Zion | Archive L-31 Rogue | -7/Zion | Archive H-88 Terminator | -7/Zion | Archive Fabricated ------------ Nothing Repaired ---------- Nothing Alien Tech Used ----------------- None Achievements -------------- None Challenges ------------ None Game ------ Seed ArcPropulsionMachine Manual? 0 Play Time 00:15:48 Cumulative 1032.8 hours Start 2025.05.11 @ 13:25:43 End 2025.05.11 @ 13:42:44 Sessions 1 Manual Loads 0 Difficulty Rogue Special Mode None Game No. 1270 Rogue 988 Adventurer 124 Explorer 158 Win Type - Total 44 Types 31/0/8/3/1/0/0/1/0/0 Lore% 91 Gallery% 85 Achievement% 79 Wizard Run 0 Options --------- Layout 0 ASCII 0 Keyboard 1 Movement Numpad Keybinds 0 Fullscreen 2 Font 18/X11 Map View 76x50 Zoom Use 0% Tactical HUD 1 Map Filters NONE Filters NONE Steam 1 RUN: 91195018-2651-4147-b383-ff67a6200ed1